﻿Department Family,Entity,Date,Expense Type,Expense Area,Supplier,Amount in Sterling
COMPANIES HOUSE,CH,05/01/2021,Agency/Contract Staff         ,Accounting                    ,Hays Specialist Recruitment Ltd         ,£515.33
COMPANIES HOUSE,CH,05/01/2021,Agency/Contract Staff         ,Accounting                    ,Hays Specialist Recruitment Ltd         ,£549.41
COMPANIES HOUSE,CH,21/01/2021,Agency/Contract Staff         ,Accounting                    ,Hays Specialist Recruitment Ltd         ,£619.25
COMPANIES HOUSE,CH,05/01/2021,Agency/Contract Staff         ,Accounting                    ,Hays Specialist Recruitment Ltd         ,£623.90
COMPANIES HOUSE,CH,21/01/2021,Agency/Contract Staff         ,Accounting                    ,Hays Specialist Recruitment Ltd         ,£625.15
COMPANIES HOUSE,CH,05/01/2021,Agency/Contract Staff         ,Accounting                    ,Hays Specialist Recruitment Ltd         ,£689.09
COMPANIES HOUSE,CH,14/01/2021,Agency/Contract Staff         ,Accounting                    ,Hays Specialist Recruitment Ltd         ,£689.09
COMPANIES HOUSE,CH,12/01/2021,Agency/Contract Staff         ,Accounting                    ,MICHAEL PAGE INTERNATIONAL RECRUITMENT  ,£812.50
COMPANIES HOUSE,CH,11/01/2021,Agency/Contract Staff         ,Accounting                    ,MICHAEL PAGE INTERNATIONAL RECRUITMENT  ,£900.00
COMPANIES HOUSE,CH,05/01/2021,Agency/Contract Staff         ,Accounting                    ,MICHAEL PAGE INTERNATIONAL RECRUITMENT  ,£908.61
COMPANIES HOUSE,CH,05/01/2021,Agency/Contract Staff         ,Accounting                    ,MICHAEL PAGE INTERNATIONAL RECRUITMENT  ,£928.80
COMPANIES HOUSE,CH,19/01/2021,Agency/Contract Staff         ,Accounting                    ,MICHAEL PAGE INTERNATIONAL RECRUITMENT  ,£975.00
COMPANIES HOUSE,CH,05/01/2021,Agency/Contract Staff         ,Accounting                    ,MICHAEL PAGE INTERNATIONAL RECRUITMENT  ,"£1,500.00"
COMPANIES HOUSE,CH,05/01/2021,Agency/Contract Staff         ,Accounting                    ,MICHAEL PAGE INTERNATIONAL RECRUITMENT  ,"£1,514.35"
COMPANIES HOUSE,CH,12/01/2021,Agency/Contract Staff         ,Accounting                    ,MICHAEL PAGE INTERNATIONAL RECRUITMENT  ,"£1,514.35"
COMPANIES HOUSE,CH,19/01/2021,Agency/Contract Staff         ,Accounting                    ,MICHAEL PAGE INTERNATIONAL RECRUITMENT  ,"£1,514.35"
COMPANIES HOUSE,CH,27/01/2021,Agency/Contract Staff         ,Accounting                    ,MICHAEL PAGE INTERNATIONAL RECRUITMENT  ,"£1,514.35"
COMPANIES HOUSE,CH,05/01/2021,Agency/Contract Staff         ,Accounting                    ,MICHAEL PAGE INTERNATIONAL RECRUITMENT  ,"£1,548.00"
COMPANIES HOUSE,CH,14/01/2021,Agency/Contract Staff         ,Accounting                    ,MICHAEL PAGE INTERNATIONAL RECRUITMENT  ,"£1,548.00"
COMPANIES HOUSE,CH,19/01/2021,Agency/Contract Staff         ,Accounting                    ,MICHAEL PAGE INTERNATIONAL RECRUITMENT  ,"£1,548.00"
COMPANIES HOUSE,CH,27/01/2021,Agency/Contract Staff         ,Accounting                    ,MICHAEL PAGE INTERNATIONAL RECRUITMENT  ,"£1,548.00"
COMPANIES HOUSE,CH,05/01/2021,Agency/Contract Staff         ,Accounting                    ,MICHAEL PAGE INTERNATIONAL RECRUITMENT  ,"£1,625.00"
COMPANIES HOUSE,CH,05/01/2021,Agency/Contract Staff         ,Accounting                    ,MICHAEL PAGE INTERNATIONAL RECRUITMENT  ,"£1,625.00"
COMPANIES HOUSE,CH,05/01/2021,Agency/Contract Staff         ,Accounting                    ,MICHAEL PAGE INTERNATIONAL RECRUITMENT  ,"£1,625.00"
COMPANIES HOUSE,CH,27/01/2021,Agency/Contract Staff         ,Accounting                    ,MICHAEL PAGE INTERNATIONAL RECRUITMENT  ,"£1,625.00"
COMPANIES HOUSE,CH,05/01/2021,Agency/Contract Staff         ,Accounting                    ,MICHAEL PAGE INTERNATIONAL RECRUITMENT  ,"£4,997.36"
COMPANIES HOUSE,CH,05/01/2021,Agency/Contract Staff         ,Accounting                    ,MICHAEL PAGE INTERNATIONAL RECRUITMENT  ,"£5,850.00"
COMPANIES HOUSE,CH,05/01/2021,Agency/Contract Staff         ,Analysis and Corporate Insight,CONCEPT RESOURCING T/A CONCEPT INFORMATION,£661.08
COMPANIES HOUSE,CH,08/01/2021,Agency/Contract Staff         ,Analysis and Corporate Insight,CONCEPT RESOURCING T/A CONCEPT INFORMATION,£676.32
COMPANIES HOUSE,CH,08/01/2021,Agency/Contract Staff         ,Analysis and Corporate Insight,CONCEPT RESOURCING T/A CONCEPT INFORMATION,£901.76
COMPANIES HOUSE,CH,20/01/2021,Agency/Contract Staff         ,Analysis and Corporate Insight,CONCEPT RESOURCING T/A CONCEPT INFORMATION,"£1,042.66"
COMPANIES HOUSE,CH,28/01/2021,Agency/Contract Staff         ,Analysis and Corporate Insight,CONCEPT RESOURCING T/A CONCEPT INFORMATION,"£1,056.75"
COMPANIES HOUSE,CH,08/01/2021,Agency/Contract Staff         ,Analysis and Corporate Insight,CONCEPT RESOURCING T/A CONCEPT INFORMATION,"£1,081.89"
COMPANIES HOUSE,CH,05/01/2021,Agency/Contract Staff         ,Analysis and Corporate Insight,CONCEPT RESOURCING T/A CONCEPT INFORMATION,"£1,127.20"
COMPANIES HOUSE,CH,14/01/2021,Agency/Contract Staff         ,Analysis and Corporate Insight,CONCEPT RESOURCING T/A CONCEPT INFORMATION,"£1,245.30"
COMPANIES HOUSE,CH,28/01/2021,Agency/Contract Staff         ,Analysis and Corporate Insight,CONCEPT RESOURCING T/A CONCEPT INFORMATION,"£1,254.20"
COMPANIES HOUSE,CH,20/01/2021,Agency/Contract Staff         ,Analysis and Corporate Insight,CONCEPT RESOURCING T/A CONCEPT INFORMATION,"£1,334.25"
COMPANIES HOUSE,CH,08/01/2021,Agency/Contract Staff         ,Analysis and Corporate Insight,CONCEPT RESOURCING T/A CONCEPT INFORMATION,"£1,442.52"
COMPANIES HOUSE,CH,05/01/2021,Agency/Contract Staff         ,Analysis and Corporate Insight,CONCEPT RESOURCING T/A CONCEPT INFORMATION,"£1,803.15"
COMPANIES HOUSE,CH,14/01/2021,Agency/Contract Staff         ,Analysis and Corporate Insight,CONCEPT RESOURCING T/A CONCEPT INFORMATION,"£1,803.15"
COMPANIES HOUSE,CH,20/01/2021,Agency/Contract Staff         ,Analysis and Corporate Insight,CONCEPT RESOURCING T/A CONCEPT INFORMATION,"£1,803.15"
COMPANIES HOUSE,CH,28/01/2021,Agency/Contract Staff         ,Analysis and Corporate Insight,CONCEPT RESOURCING T/A CONCEPT INFORMATION,"£1,803.15"
COMPANIES HOUSE,CH,21/01/2021,Agency/Contract Staff         ,Building Services             ,Hays Specialist Recruitment Ltd         ,"£1,386.40"
COMPANIES HOUSE,CH,19/01/2021,Agency/Contract Staff         ,Building Services             ,Hays Specialist Recruitment Ltd         ,"£1,596.47"
COMPANIES HOUSE,CH,21/01/2021,Agency/Contract Staff         ,Building Services             ,Hays Specialist Recruitment Ltd         ,"£1,617.47"
COMPANIES HOUSE,CH,19/01/2021,Agency/Contract Staff         ,Building Services             ,Hays Specialist Recruitment Ltd         ,"£1,632.22"
COMPANIES HOUSE,CH,19/01/2021,Agency/Contract Staff         ,Building Services             ,Hays Specialist Recruitment Ltd         ,"£1,764.50"
COMPANIES HOUSE,CH,19/01/2021,Agency/Contract Staff         ,Building Services             ,Hays Specialist Recruitment Ltd         ,"£1,779.26"
COMPANIES HOUSE,CH,05/01/2021,Agency/Contract Staff         ,CDD Cardiff                   ,Hays Specialist Recruitment Ltd         ,£582.19
COMPANIES HOUSE,CH,07/01/2021,Agency/Contract Staff         ,CDD Cardiff                   ,Hays Specialist Recruitment Ltd         ,£582.19
COMPANIES HOUSE,CH,07/01/2021,Agency/Contract Staff         ,CDD Cardiff                   ,Hays Specialist Recruitment Ltd         ,£582.19
COMPANIES HOUSE,CH,14/01/2021,Agency/Contract Staff         ,CDD Cardiff                   ,Hays Specialist Recruitment Ltd         ,£582.19
COMPANIES HOUSE,CH,14/01/2021,Agency/Contract Staff         ,CDD Cardiff                   ,Hays Specialist Recruitment Ltd         ,£582.19
COMPANIES HOUSE,CH,05/01/2021,Agency/Contract Staff         ,CDD Cardiff                   ,Hays Specialist Recruitment Ltd         ,£727.74
COMPANIES HOUSE,CH,21/01/2021,Agency/Contract Staff         ,CDD Cardiff                   ,Hays Specialist Recruitment Ltd         ,£727.74
COMPANIES HOUSE,CH,22/01/2021,Agency/Contract Staff         ,Change & Continuous Improvement,ALEXANDER MANN SOLUTIONS                ,"£4,311.48"
COMPANIES HOUSE,CH,05/01/2021,Agency/Contract Staff         ,HR Strategy & Policy          ,CONCEPT RESOURCING T/A CONCEPT INFORMATION,£785.10
COMPANIES HOUSE,CH,14/01/2021,Agency/Contract Staff         ,HR Strategy & Policy          ,CONCEPT RESOURCING T/A CONCEPT INFORMATION,£785.10
COMPANIES HOUSE,CH,22/01/2021,Agency/Contract Staff         ,HR Strategy & Policy          ,CONCEPT RESOURCING T/A CONCEPT INFORMATION,£785.10
COMPANIES HOUSE,CH,28/01/2021,Agency/Contract Staff         ,HR Strategy & Policy          ,CONCEPT RESOURCING T/A CONCEPT INFORMATION,£785.10
COMPANIES HOUSE,CH,08/01/2021,Agency/Contract Staff         ,HR Strategy & Policy          ,Hays Specialist Recruitment Ltd         ,£873.76
COMPANIES HOUSE,CH,08/01/2021,Agency/Contract Staff         ,HR Strategy & Policy          ,Hays Specialist Recruitment Ltd         ,"£1,165.01"
COMPANIES HOUSE,CH,05/01/2021,Agency/Contract Staff         ,HR Strategy & Policy          ,Hays Specialist Recruitment Ltd         ,"£1,456.26"
COMPANIES HOUSE,CH,11/01/2021,Agency/Contract Staff         ,Internal Communications                ,Hays Specialist Recruitment Ltd         ,£758.16
COMPANIES HOUSE,CH,11/01/2021,Agency/Contract Staff         ,Internal Communications                ,Hays Specialist Recruitment Ltd         ,"£1,010.88"
COMPANIES HOUSE,CH,11/01/2021,Agency/Contract Staff         ,Internal Communications                ,Hays Specialist Recruitment Ltd         ,"£1,263.60"
COMPANIES HOUSE,CH,11/01/2021,Agency/Contract Staff         ,Internal Communications                ,Hays Specialist Recruitment Ltd         ,"£1,263.60"
COMPANIES HOUSE,CH,11/01/2021,Agency/Contract Staff         ,Internal Communications                ,Hays Specialist Recruitment Ltd         ,"£1,263.60"
COMPANIES HOUSE,CH,14/01/2021,Agency/Contract Staff         ,Internal Communications                ,Hays Specialist Recruitment Ltd         ,"£1,263.60"
COMPANIES HOUSE,CH,21/01/2021,Agency/Contract Staff         ,Internal Communications                ,Hays Specialist Recruitment Ltd         ,"£1,263.60"
COMPANIES HOUSE,CH,08/01/2021,Agency/Contract Staff         ,IT Infrastructure             ,Spring Technology Staffing Services Ltd ,£852.90
COMPANIES HOUSE,CH,08/01/2021,Agency/Contract Staff         ,IT Infrastructure             ,ALEXANDER MANN SOLUTIONS                ,"£1,709.24"
COMPANIES HOUSE,CH,08/01/2021,Agency/Contract Staff         ,IT Infrastructure             ,Hays Specialist Recruitment Ltd         ,"£1,950.12"
COMPANIES HOUSE,CH,08/01/2021,Agency/Contract Staff         ,IT Infrastructure             ,Spring Technology Staffing Services Ltd ,"£2,026.80"
COMPANIES HOUSE,CH,05/01/2021,Agency/Contract Staff         ,IT Infrastructure             ,ALEXANDER MANN SOLUTIONS                ,"£2,278.99"
COMPANIES HOUSE,CH,05/01/2021,Agency/Contract Staff         ,IT Infrastructure             ,Spring Technology Staffing Services Ltd ,"£2,558.70"
COMPANIES HOUSE,CH,08/01/2021,Agency/Contract Staff         ,IT Infrastructure             ,Hays Specialist Recruitment Ltd         ,"£2,600.16"
COMPANIES HOUSE,CH,05/01/2021,Agency/Contract Staff         ,IT Infrastructure             ,Spring Technology Staffing Services Ltd ,"£2,702.40"
COMPANIES HOUSE,CH,05/01/2021,Agency/Contract Staff         ,IT Infrastructure             ,ALEXANDER MANN SOLUTIONS                ,"£2,848.74"
COMPANIES HOUSE,CH,05/01/2021,Agency/Contract Staff         ,IT Infrastructure             ,ALEXANDER MANN SOLUTIONS                ,"£2,848.74"
COMPANIES HOUSE,CH,15/01/2021,Agency/Contract Staff         ,IT Infrastructure             ,ALEXANDER MANN SOLUTIONS                ,"£2,848.74"
COMPANIES HOUSE,CH,22/01/2021,Agency/Contract Staff         ,IT Infrastructure             ,ALEXANDER MANN SOLUTIONS                ,"£2,848.74"
COMPANIES HOUSE,CH,11/01/2021,Agency/Contract Staff         ,IT Infrastructure             ,Hays Specialist Recruitment Ltd         ,"£3,250.20"
COMPANIES HOUSE,CH,19/01/2021,Agency/Contract Staff         ,IT Infrastructure             ,Hays Specialist Recruitment Ltd         ,"£3,250.20"
COMPANIES HOUSE,CH,19/01/2021,Agency/Contract Staff         ,IT Infrastructure             ,Hays Specialist Recruitment Ltd         ,"£3,250.20"
COMPANIES HOUSE,CH,27/01/2021,Agency/Contract Staff         ,IT Infrastructure             ,Hays Specialist Recruitment Ltd         ,"£3,250.20"
COMPANIES HOUSE,CH,14/01/2021,Agency/Contract Staff         ,IT Infrastructure             ,Spring Technology Staffing Services Ltd ,"£3,378.00"
COMPANIES HOUSE,CH,19/01/2021,Agency/Contract Staff         ,IT Infrastructure             ,Spring Technology Staffing Services Ltd ,"£3,378.00"
COMPANIES HOUSE,CH,27/01/2021,Agency/Contract Staff         ,IT Infrastructure             ,Spring Technology Staffing Services Ltd ,"£3,378.00"
COMPANIES HOUSE,CH,05/01/2021,Agency/Contract Staff         ,IT Infrastructure             ,Spring Technology Staffing Services Ltd ,"£4,264.50"
COMPANIES HOUSE,CH,12/01/2021,Agency/Contract Staff         ,IT Infrastructure             ,Spring Technology Staffing Services Ltd ,"£4,264.50"
COMPANIES HOUSE,CH,19/01/2021,Agency/Contract Staff         ,IT Infrastructure             ,Spring Technology Staffing Services Ltd ,"£4,264.50"
COMPANIES HOUSE,CH,27/01/2021,Agency/Contract Staff         ,IT Infrastructure             ,Spring Technology Staffing Services Ltd ,"£4,264.50"
COMPANIES HOUSE,CH,08/01/2021,Agency/Contract Staff         ,Late Filing Penalties Accounting                ,Hays Specialist Recruitment Ltd         ,£511.20
COMPANIES HOUSE,CH,07/01/2021,Agency/Contract Staff         ,Late Filing Penalties Accounting                ,Hays Specialist Recruitment Ltd         ,£528.24
COMPANIES HOUSE,CH,07/01/2021,Agency/Contract Staff         ,Late Filing Penalties Accounting                ,Hays Specialist Recruitment Ltd         ,£639.00
COMPANIES HOUSE,CH,07/01/2021,Agency/Contract Staff         ,Late Filing Penalties Accounting                ,Hays Specialist Recruitment Ltd         ,£639.00
COMPANIES HOUSE,CH,07/01/2021,Agency/Contract Staff         ,Late Filing Penalties Accounting                ,Hays Specialist Recruitment Ltd         ,£639.00
COMPANIES HOUSE,CH,08/01/2021,Agency/Contract Staff         ,Late Filing Penalties Accounting                ,Hays Specialist Recruitment Ltd         ,£639.00
COMPANIES HOUSE,CH,08/01/2021,Agency/Contract Staff         ,Late Filing Penalties Accounting                ,Hays Specialist Recruitment Ltd         ,£639.00
COMPANIES HOUSE,CH,14/01/2021,Agency/Contract Staff         ,Late Filing Penalties Accounting                ,Hays Specialist Recruitment Ltd         ,£639.00
COMPANIES HOUSE,CH,14/01/2021,Agency/Contract Staff         ,Late Filing Penalties Accounting                ,Hays Specialist Recruitment Ltd         ,£639.00
COMPANIES HOUSE,CH,21/01/2021,Agency/Contract Staff         ,Late Filing Penalties Accounting                ,Hays Specialist Recruitment Ltd         ,£639.00
COMPANIES HOUSE,CH,21/01/2021,Agency/Contract Staff         ,Late Filing Penalties Accounting                ,Hays Specialist Recruitment Ltd         ,£639.00
COMPANIES HOUSE,CH,05/01/2021,Agency/Contract Staff         ,Late Filing Penalties Accounting                ,Hays Specialist Recruitment Ltd         ,£651.78
COMPANIES HOUSE,CH,14/01/2021,Agency/Contract Staff         ,Late Filing Penalties Accounting                ,Hays Specialist Recruitment Ltd         ,£664.56
COMPANIES HOUSE,CH,21/01/2021,Agency/Contract Staff         ,Late Filing Penalties Accounting                ,Hays Specialist Recruitment Ltd         ,£664.56
COMPANIES HOUSE,CH,05/01/2021,Agency/Contract Staff         ,Late Filing Penalties Accounting                ,Hays Specialist Recruitment Ltd         ,£673.08
COMPANIES HOUSE,CH,05/01/2021,Agency/Contract Staff         ,Late Filing Penalties Accounting                ,Hays Specialist Recruitment Ltd         ,£681.60
COMPANIES HOUSE,CH,08/01/2021,Agency/Contract Staff         ,Procurement                   ,Hays Specialist Recruitment Ltd         ,"£1,416.50"
COMPANIES HOUSE,CH,05/01/2021,Agency/Contract Staff         ,Procurement                   ,Hays Specialist Recruitment Ltd         ,"£2,124.76"
COMPANIES HOUSE,CH,08/01/2021,Agency/Contract Staff         ,Procurement                   ,Hays Specialist Recruitment Ltd         ,"£2,367.11"
COMPANIES HOUSE,CH,19/01/2021,Agency/Contract Staff         ,Procurement                   ,Hays Specialist Recruitment Ltd         ,"£2,367.11"
COMPANIES HOUSE,CH,08/01/2021,Agency/Contract Staff         ,Procurement                   ,Hays Specialist Recruitment Ltd         ,"£2,833.01"
COMPANIES HOUSE,CH,08/01/2021,Agency/Contract Staff         ,Procurement                   ,Hays Specialist Recruitment Ltd         ,"£2,833.01"
COMPANIES HOUSE,CH,05/01/2021,Agency/Contract Staff         ,Procurement                   ,Hays Specialist Recruitment Ltd         ,"£3,156.14"
COMPANIES HOUSE,CH,05/01/2021,Agency/Contract Staff         ,Procurement                   ,Hays Specialist Recruitment Ltd         ,"£3,541.26"
COMPANIES HOUSE,CH,14/01/2021,Agency/Contract Staff         ,Procurement                   ,Hays Specialist Recruitment Ltd         ,"£3,541.26"
COMPANIES HOUSE,CH,15/01/2021,Agency/Contract Staff         ,Procurement                   ,Hays Specialist Recruitment Ltd         ,"£3,541.26"
COMPANIES HOUSE,CH,19/01/2021,Agency/Contract Staff         ,Procurement                   ,Hays Specialist Recruitment Ltd         ,"£3,541.26"
COMPANIES HOUSE,CH,19/01/2021,Agency/Contract Staff         ,Procurement                   ,Hays Specialist Recruitment Ltd         ,"£3,541.26"
COMPANIES HOUSE,CH,25/01/2021,Agency/Contract Staff         ,Procurement                   ,Hays Specialist Recruitment Ltd         ,"£3,541.26"
COMPANIES HOUSE,CH,27/01/2021,Agency/Contract Staff         ,Procurement                   ,Hays Specialist Recruitment Ltd         ,"£3,541.26"
COMPANIES HOUSE,CH,14/01/2021,Agency/Contract Staff         ,Procurement                   ,Hays Specialist Recruitment Ltd         ,"£3,945.18"
COMPANIES HOUSE,CH,19/01/2021,Agency/Contract Staff         ,Procurement                   ,Hays Specialist Recruitment Ltd         ,"£3,945.18"
COMPANIES HOUSE,CH,27/01/2021,Agency/Contract Staff         ,Procurement                   ,Hays Specialist Recruitment Ltd         ,"£3,945.18"
COMPANIES HOUSE,CH,08/01/2021,Agency/Contract Staff         ,Programme                     ,Hays Specialist Recruitment Ltd         ,"£1,545.05"
COMPANIES HOUSE,CH,05/01/2021,Agency/Contract Staff         ,Programme                     ,Hays Specialist Recruitment Ltd         ,"£1,710.11"
COMPANIES HOUSE,CH,14/01/2021,Agency/Contract Staff         ,Programme                     ,Hays Specialist Recruitment Ltd         ,"£1,854.17"
COMPANIES HOUSE,CH,08/01/2021,Agency/Contract Staff         ,Programme                     ,Hays Specialist Recruitment Ltd         ,"£2,575.08"
COMPANIES HOUSE,CH,08/01/2021,Agency/Contract Staff         ,Programme                     ,Hays Specialist Recruitment Ltd         ,"£2,575.08"
COMPANIES HOUSE,CH,08/01/2021,Agency/Contract Staff         ,Programme                     ,Hays Specialist Recruitment Ltd         ,"£2,575.08"
COMPANIES HOUSE,CH,08/01/2021,Agency/Contract Staff         ,Programme                     ,Hays Specialist Recruitment Ltd         ,"£2,575.08"
COMPANIES HOUSE,CH,08/01/2021,Agency/Contract Staff         ,Programme                     ,Hays Specialist Recruitment Ltd         ,"£2,850.18"
COMPANIES HOUSE,CH,14/01/2021,Agency/Contract Staff         ,Programme                     ,Hays Specialist Recruitment Ltd         ,"£4,635.42"
COMPANIES HOUSE,CH,21/01/2021,Agency/Contract Staff         ,Programme                     ,Hays Specialist Recruitment Ltd         ,"£4,635.42"
COMPANIES HOUSE,CH,22/01/2021,Agency/Contract Staff         ,Programme                     ,Hays Specialist Recruitment Ltd         ,"£4,635.42"
COMPANIES HOUSE,CH,27/01/2021,Agency/Contract Staff         ,Programme                     ,Hays Specialist Recruitment Ltd         ,"£4,635.42"
COMPANIES HOUSE,CH,08/01/2021,Agency/Contract Staff         ,Projects,Hays Specialist Recruitment Ltd         ,£653.17
COMPANIES HOUSE,CH,08/01/2021,Agency/Contract Staff         ,Projects,Hays Specialist Recruitment Ltd         ,"£1,306.34"
COMPANIES HOUSE,CH,08/01/2021,Agency/Contract Staff         ,Projects,Hays Specialist Recruitment Ltd         ,"£2,014.78"
COMPANIES HOUSE,CH,19/01/2021,Agency/Contract Staff         ,Projects,Hays Specialist Recruitment Ltd         ,"£3,265.86"
COMPANIES HOUSE,CH,19/01/2021,Agency/Contract Staff         ,Projects,Hays Specialist Recruitment Ltd         ,"£3,265.86"
COMPANIES HOUSE,CH,05/01/2021,Agency/Contract Staff         ,Projects,Hays Specialist Recruitment Ltd         ,"£3,357.96"
COMPANIES HOUSE,CH,20/01/2021,Agency/Contract Staff         ,Projects,Hays Specialist Recruitment Ltd         ,"£3,357.96"
COMPANIES HOUSE,CH,20/01/2021,Agency/Contract Staff         ,Projects,Hays Specialist Recruitment Ltd         ,"£3,357.96"
COMPANIES HOUSE,CH,08/01/2021,Agency/Contract Staff         ,Software Engineering          ,Hays Specialist Recruitment Ltd         ,"£1,731.91"
COMPANIES HOUSE,CH,12/01/2021,Agency/Contract Staff         ,Software Engineering          ,Hays Specialist Recruitment Ltd         ,"£4,329.78"
COMPANIES HOUSE,CH,19/01/2021,Agency/Contract Staff         ,Software Engineering          ,Hays Specialist Recruitment Ltd         ,"£4,329.78"
COMPANIES HOUSE,CH,20/01/2021,Agency/Contract Staff         ,Software Engineering          ,Hays Specialist Recruitment Ltd         ,"£4,329.78"
COMPANIES HOUSE,CH,27/01/2021,Agency/Contract Staff         ,Software Engineering          ,Hays Specialist Recruitment Ltd         ,"£4,329.78"
COMPANIES HOUSE,CH,05/01/2021,Agency/Contract Staff         ,Software Management           ,ALEXANDER MANN SOLUTIONS                ,"£2,344.70"
COMPANIES HOUSE,CH,15/01/2021,Agency/Contract Staff         ,Software Management           ,ALEXANDER MANN SOLUTIONS                ,"£2,930.88"
COMPANIES HOUSE,CH,22/01/2021,Agency/Contract Staff         ,Software Management           ,ALEXANDER MANN SOLUTIONS                ,"£2,930.88"
COMPANIES HOUSE,CH,08/01/2021,Agency/Contract Staff         ,Software Management           ,ALEXANDER MANN SOLUTIONS                ,"£4,103.23"
COMPANIES HOUSE,CH,08/01/2021,Agency/Contract Staff         ,"Strategy, Policy & Communications      ",Hays Specialist Recruitment Ltd         ,£601.80
COMPANIES HOUSE,CH,08/01/2021,Agency/Contract Staff         ,"Strategy, Policy & Communications      ",Hays Specialist Recruitment Ltd         ,£647.44
COMPANIES HOUSE,CH,07/01/2021,Agency/Contract Staff         ,"Strategy, Policy & Communications      ",Hays Specialist Recruitment Ltd         ,£755.45
COMPANIES HOUSE,CH,19/01/2021,Agency/Contract Staff         ,"Strategy, Policy & Communications      ",Hays Specialist Recruitment Ltd         ,£846.00
COMPANIES HOUSE,CH,19/01/2021,Agency/Contract Staff         ,"Strategy, Policy & Communications      ",Hays Specialist Recruitment Ltd         ,£846.00
COMPANIES HOUSE,CH,27/01/2021,Agency/Contract Staff         ,"Strategy, Policy & Communications      ",Hays Specialist Recruitment Ltd         ,£846.00
COMPANIES HOUSE,CH,05/01/2021,Agency/Contract Staff         ,"Strategy, Policy & Communications      ",Hays Specialist Recruitment Ltd         ,£947.50
COMPANIES HOUSE,CH,05/01/2021,Agency/Contract Staff         ,"Strategy, Policy & Communications      ",Hays Specialist Recruitment Ltd         ,£947.50
COMPANIES HOUSE,CH,05/01/2021,Agency/Contract Staff         ,"Strategy, Policy & Communications      ",Hays Specialist Recruitment Ltd         ,£947.50
COMPANIES HOUSE,CH,14/01/2021,Agency/Contract Staff         ,"Strategy, Policy & Communications      ",Hays Specialist Recruitment Ltd         ,£947.51
COMPANIES HOUSE,CH,21/01/2021,Agency/Contract Staff         ,"Strategy, Policy & Communications      ",Hays Specialist Recruitment Ltd         ,£947.51
COMPANIES HOUSE,CH,08/01/2021,Agency/Contract Staff         ,"Strategy, Policy & Communications      ",Hays Specialist Recruitment Ltd         ,"£1,146.89"
COMPANIES HOUSE,CH,05/01/2021,Agency/Contract Staff         ,"Strategy, Policy & Communications      ",Hays Specialist Recruitment Ltd         ,"£1,297.84"
COMPANIES HOUSE,CH,14/01/2021,Agency/Contract Staff         ,"Strategy, Policy & Communications      ",Hays Specialist Recruitment Ltd         ,"£1,297.84"
COMPANIES HOUSE,CH,21/01/2021,Agency/Contract Staff         ,"Strategy, Policy & Communications      ",Hays Specialist Recruitment Ltd         ,"£1,297.84"
COMPANIES HOUSE,CH,14/01/2021,Agency/Contract Staff         ,"Strategy, Policy & Communications      ",Hays Specialist Recruitment Ltd         ,"£1,368.88"
COMPANIES HOUSE,CH,21/01/2021,Agency/Contract Staff         ,"Strategy, Policy & Communications      ",Hays Specialist Recruitment Ltd         ,"£1,368.88"
COMPANIES HOUSE,CH,05/01/2021,Agency/Contract Staff         ,"Strategy, Policy & Communications      ",Hays Specialist Recruitment Ltd         ,"£1,387.38"
COMPANIES HOUSE,CH,14/01/2021,Belfast Maintenance           ,Northern Ireland              ,GOVERNMENT PROPERTY AGENCY              ,"£1,157.76"
COMPANIES HOUSE,CH,14/01/2021,Bloomsbury Maintenance         ,London Information Centre,GOVERNMENT PROPERTY AGENCY              ,"£1,665.49"
COMPANIES HOUSE,CH,05/01/2021,Independent adjudication – details withheld ,Late Filing Penalties,Independent adjudication – details withheld ,"£1,224.00"
COMPANIES HOUSE,CH,05/01/2021,Independent adjudication – details withheld ,Late Filing Penalties,Independent adjudication – details withheld ,"£1,440.00"
COMPANIES HOUSE,CH,21/01/2021,Independent adjudication – details withheld ,Late Filing Penalties,Independent adjudication – details withheld ,"£1,646.30"
COMPANIES HOUSE,CH,20/01/2021,External Managed Services,Programme                     ,KAINOS SOFTWARE LTD                     ,"£271,017.83"
COMPANIES HOUSE,CH,15/01/2021,CE Misc Additions TY          ,IT Infrastructure             ,ACADEMIA LTD                            ,"£43,198.00"
COMPANIES HOUSE,CH,05/01/2021,CHD Invoice Printing          ,Accounting                    ,PARAGON CUSTOMER COMMUNICATIONS (LONDON),£600.58
COMPANIES HOUSE,CH,25/01/2021,CHD Invoice Printing          ,Accounting                    ,PARAGON CUSTOMER COMMUNICATIONS (LONDON),£623.86
COMPANIES HOUSE,CH,25/01/2021,Circuit Rental                ,IT Infrastructure             ,AdEPT Telecom PLC                       ,"£4,306.34"
COMPANIES HOUSE,CH,05/01/2021,Circuit Rental                ,IT Infrastructure             ,Vodafone Ltd                            ,"£9,084.95"
COMPANIES HOUSE,CH,14/01/2021,Cleaning Contract             ,Building Services             ,GOVERNMENT PROPERTY AGENCY              ,"£30,385.23"
COMPANIES HOUSE,CH,14/01/2021,Cleaning Contract             ,Edinburgh                     ,GOVERNMENT PROPERTY AGENCY              ,£756.71
COMPANIES HOUSE,CH,14/01/2021,Cleaning Contract             ,London Information Centre,GOVERNMENT PROPERTY AGENCY              ,"£1,456.89"
COMPANIES HOUSE,CH,14/01/2021,Cleaning Contract             ,Northern Ireland              ,GOVERNMENT PROPERTY AGENCY              ,£551.59
COMPANIES HOUSE,CH,14/01/2021,Cloud Services                ,Platform Engineering          ,Amazon Web Services                     ,£508.72
COMPANIES HOUSE,CH,14/01/2021,Cloud Services                ,Platform Engineering          ,Amazon Web Services                     ,"£1,412.61"
COMPANIES HOUSE,CH,14/01/2021,Cloud Services                ,Platform Engineering          ,Amazon Web Services                     ,"£2,654.09"
COMPANIES HOUSE,CH,14/01/2021,Cloud Services                ,Platform Engineering          ,Amazon Web Services                     ,"£22,388.51"
COMPANIES HOUSE,CH,14/01/2021,Cloud Services                ,Platform Engineering          ,Amazon Web Services                     ,"£59,771.49"
COMPANIES HOUSE,CH,27/01/2021,Legal Disbursements,Late Filing Penalties Accounting                ,INDESSER                                ,"£70,979.20"
COMPANIES HOUSE,CH,19/01/2021,Consultants Computer          ,Accounting                    ,Advanced Business Solutions             ,"£1,912.50"
COMPANIES HOUSE,CH,19/01/2021,Consultants Computer          ,Accounting                    ,Advanced Business Solutions             ,"£1,912.50"
COMPANIES HOUSE,CH,12/01/2021,Contact Centre                ,CDD Cardiff                   ,Serco Limited                           ,"£151,654.06"
COMPANIES HOUSE,CH,14/01/2021,Edinburgh Maintenance         ,Edinburgh                     ,GOVERNMENT PROPERTY AGENCY              ,£688.71
COMPANIES HOUSE,CH,11/01/2021,Electricity                   ,Building Services             ,E D F ENERGY CUSTOMERS PLC              ,"£47,135.53"
COMPANIES HOUSE,CH,08/01/2021,Electricity                   ,Edinburgh                     ,E D F ENERGY CUSTOMERS PLC              ,£664.97
COMPANIES HOUSE,CH,05/01/2021,Electricity                   ,Northern Ireland              ,Power NI                                ,"£2,519.76"
COMPANIES HOUSE,CH,08/01/2021,Electricity                   ,Northern Ireland              ,Power NI                                ,"£2,743.08"
COMPANIES HOUSE,CH,07/01/2021,Environmental costs           ,Programme                     ,SANTIA ASBESTOS MANAGEMENT LTD          ,"£1,362.50"
COMPANIES HOUSE,CH,21/01/2021,Environmental costs           ,Programme                     ,WILLMOTT DIXON INTERIORS LTD            ,"£403,593.89"
COMPANIES HOUSE,CH,20/01/2021,EST Additions This Year       ,Covid 19 Activity             ,COMBINED OFFICE INTERIORS LTD           ,"£2,594.00"
COMPANIES HOUSE,CH,20/01/2021,External managed services     ,Platform Engineering          ,KAINOS SOFTWARE LTD                     ,"£135,759.67"
COMPANIES HOUSE,CH,14/01/2021,External managed services     ,Programme                     ,FDM GROUP                               ,"£33,570.00"
COMPANIES HOUSE,CH,21/01/2021,External managed services     ,Programme                     ,FDM GROUP                               ,"£39,682.00"
COMPANIES HOUSE,CH,21/01/2021,External managed services     ,Programme                     ,FDM GROUP                               ,"£41,976.00"
COMPANIES HOUSE,CH,12/01/2021,External managed services     ,Programme                     ,FDM GROUP                               ,"£53,042.00"
COMPANIES HOUSE,CH,12/01/2021,Gazette Notices               ,CDD Cardiff                   ,Stationery Office                       ,"£8,497.64"
COMPANIES HOUSE,CH,22/01/2021,Gazette Notices               ,CDD Cardiff                   ,Stationery Office                       ,"£8,497.64"
COMPANIES HOUSE,CH,08/01/2021,Government Legal              ,CDD Cardiff                   ,GOVERNMENT LEGAL DEPARTMENT             ,"£93,850.87"
COMPANIES HOUSE,CH,21/01/2021,Government Legal              ,Legal Services                ,GOVERNMENT LEGAL DEPARTMENT             ,£518.28
COMPANIES HOUSE,CH,21/01/2021,Government Legal              ,Legal Services                ,GOVERNMENT LEGAL DEPARTMENT             ,£656.64
COMPANIES HOUSE,CH,20/01/2021,Hardware &Software Maintenance ,CDD Cardiff                   ,THE SOFTWARE BUREAU LTD                 ,"£4,650.00"
COMPANIES HOUSE,CH,14/01/2021,Hardware &Software Maintenance ,IT Infrastructure             ,AUTOMATED-INTELLIGENCE LTD              ,"£1,600.00"
COMPANIES HOUSE,CH,27/01/2021,Hardware &Software Maintenance ,IT Infrastructure             ,QUEST SOFTWARE INTERNATIONAL LIMITED    ,"£7,551.16"
COMPANIES HOUSE,CH,19/01/2021,Hardware &Software Maintenance ,IT Infrastructure             ,Oracle                                  ,"£162,637.79"
COMPANIES HOUSE,CH,21/01/2021,Hardware &Software Maintenance ,Procurement                   ,MHR                                     ,"£2,439.84"
COMPANIES HOUSE,CH,08/01/2021,Hardware &Software Maintenance ,Software Management           ,QUEST SOFTWARE INTERNATIONAL LIMITED    ,"£13,442.93"
COMPANIES HOUSE,CH,05/01/2021,Hardware &Software Maintenance ,Software Management           ,ITELLIGENCE BUSINESS SOLUTIONS (UK) LTD ,"£13,537.00"
COMPANIES HOUSE,CH,18/01/2021,Hardware &Software Maintenance ,Software Management           ,TIBCO SOFTWARE (IRELAND) LTD            ,"£101,219.48"
COMPANIES HOUSE,CH,21/01/2021,Legal Disbursements           ,Late Filing Penalties Edinburgh                 ,ALSTON LAW LTD                          ,"£2,020.20"
COMPANIES HOUSE,CH,14/01/2021,Maintenance Contract          ,Building Services             ,GOVERNMENT PROPERTY AGENCY              ,"£46,298.60"
COMPANIES HOUSE,CH,15/01/2021,Telephone Costs,IT Infrastructure             ,TELEFONICA UK LTD                       ,"£6,541.17"
COMPANIES HOUSE,CH,05/01/2021,Occupational Health Contract  ,Building Services             ,PEOPLE ASSET MANAGEMENT GROUP LTD       ,£930.00
COMPANIES HOUSE,CH,27/01/2021,Occupational Health Contract  ,Building Services             ,PEOPLE ASSET MANAGEMENT GROUP LTD       ,"£1,429.00"
COMPANIES HOUSE,CH,12/01/2021,Occupational Health Contract  ,Building Services             ,PEOPLE ASSET MANAGEMENT GROUP LTD       ,"£1,454.00"
COMPANIES HOUSE,CH,19/01/2021,Occupational Health Contract  ,Building Services             ,PEOPLE ASSET MANAGEMENT GROUP LTD       ,"£1,725.00"
COMPANIES HOUSE,CH,07/01/2021,Occupational Health Contract  ,Building Services             ,PEOPLE ASSET MANAGEMENT GROUP LTD       ,"£2,485.00"
COMPANIES HOUSE,CH,05/01/2021,Occupational Health Contract  ,Building Services             ,PEOPLE ASSET MANAGEMENT GROUP LTD       ,"£2,635.00"
COMPANIES HOUSE,CH,22/01/2021,Postage  ,Edinburgh                     ,DX Network Services Limited             ,£877.50
COMPANIES HOUSE,CH,22/01/2021,Postage  ,Edinburgh                     ,DX Network Services Limited             ,£877.50
COMPANIES HOUSE,CH,07/01/2021,Postage  ,Edinburgh                     ,DX Network Services Limited             ,£900.00
COMPANIES HOUSE,CH,05/01/2021,Print and Mailing Contract    ,CDD Cardiff                   ,APS GROUP                               ,£956.57
COMPANIES HOUSE,CH,11/01/2021,Print and Mailing Contract    ,CDD Cardiff                   ,APS GROUP                               ,"£1,638.51"
COMPANIES HOUSE,CH,08/01/2021,Print and Mailing Contract    ,CDD Cardiff                   ,APS GROUP                               ,"£20,381.61"
COMPANIES HOUSE,CH,05/01/2021,Print and Mailing Contract    ,CDD Cardiff                   ,APS GROUP                               ,"£25,347.82"
COMPANIES HOUSE,CH,08/01/2021,Print and Mailing Contract    ,CDD Cardiff                   ,APS GROUP                               ,"£33,405.74"
COMPANIES HOUSE,CH,05/01/2021,Print and Mailing Contract    ,CDD Cardiff                   ,APS GROUP                               ,"£34,434.75"
COMPANIES HOUSE,CH,08/01/2021,Print and Mailing Contract    ,Late Filing Penalties,A McLay & Company Ltd                   ,"£2,431.47"
COMPANIES HOUSE,CH,11/01/2021,Print and Mailing Contract    ,Late Filing Penalties,A McLay & Company Ltd                   ,"£5,762.61"
COMPANIES HOUSE,CH,08/01/2021,Print and Mailing Contract    ,Late Filing Penalties,A McLay & Company Ltd                   ,"£9,987.56"
COMPANIES HOUSE,CH,22/01/2021,Print and Mailing Contract    ,Procurement                   ,A McLay & Company Ltd                   ,"£5,490.00"
COMPANIES HOUSE,CH,27/01/2021,Professional Fees             ,Building Services             ,British Standards Institute             ,"£1,100.00"
COMPANIES HOUSE,CH,05/01/2021,Professional Fees             ,Building Services             ,British Standards Institute             ,"£1,833.00"
COMPANIES HOUSE,CH,11/01/2021,Professional Fees             ,IT Infrastructure             ,Computacenter (GCAT)                    ,"£4,636.32"
COMPANIES HOUSE,CH,07/01/2021,Professional Fees             ,IT Infrastructure             ,Computacenter (GCAT)                    ,"£6,419.52"
COMPANIES HOUSE,CH,07/01/2021,Professional Fees             ,Programme                     ,Risual Limited                          ,£950.00
COMPANIES HOUSE,CH,05/01/2021,Professional Fees             ,Programme                     ,FAITHFUL+GOULD LTD                      ,"£5,565.00"
COMPANIES HOUSE,CH,05/01/2021,Professional Fees             ,Programme                     ,FAITHFUL+GOULD LTD                      ,"£9,925.00"
COMPANIES HOUSE,CH,05/01/2021,Professional Fees             ,Programme                     ,FAITHFUL+GOULD LTD                      ,"£11,331.00"
COMPANIES HOUSE,CH,22/01/2021,Professional Fees             ,Software Management           ,TIBCO SOFTWARE (IRELAND) LTD            ,£632.00
COMPANIES HOUSE,CH,19/01/2021,RATES                         ,Building Services             ,City and County of Cardiff              ,"£75,970.00"
COMPANIES HOUSE,CH,19/01/2021,RATES                         ,London Information Centre,CITY OF WESTMINSTER                     ,"£1,934.00"
COMPANIES HOUSE,CH,19/01/2021,RATES                         ,London Information Centre,CITY OF WESTMINSTER                     ,"£2,944.00"
COMPANIES HOUSE,CH,28/01/2021,Rent                          ,Edinburgh                     ,KNIGHT FRANK                            ,"£65,480.00"
COMPANIES HOUSE,CH,12/01/2021,Rent                          ,Northern Ireland              ,CBRE NI LIMITED                         ,"£34,749.00"
COMPANIES HOUSE,CH,11/01/2021,Restaurant Services           ,Building Services             ,ARAMARK                                 ,"£15,817.50"
COMPANIES HOUSE,CH,12/01/2021,Rolling Maintenance & minor contracts,Building Services             ,RADIOCOMS SYSTEMS LIMITED               ,£789.00
COMPANIES HOUSE,CH,11/01/2021,Rolling Maintenance & minor contracts,Building Services             ,ROB MORRIS PLANT HIRE LTD               ,"£1,176.00"
COMPANIES HOUSE,CH,11/01/2021,Postage,CDD Cardiff                   ,Royal Mail                              ,"£1,874.35"
COMPANIES HOUSE,CH,07/01/2021,Postage,CDD Cardiff                   ,Royal Mail                              ,"£3,299.12"
COMPANIES HOUSE,CH,07/01/2021,Postage,CDD Cardiff                   ,Royal Mail                              ,"£3,403.93"
COMPANIES HOUSE,CH,14/01/2021,Secondments                   ,"Strategy, Policy & Communications      ",FINANCIAL REPORTING COUNCIL LTD         ,"£2,328.48"
COMPANIES HOUSE,CH,11/01/2021,Security                      ,Accounting                    ,Loomis Uk Ltd                           ,£649.45
COMPANIES HOUSE,CH,14/01/2021,Security                      ,Building Services             ,GOVERNMENT PROPERTY AGENCY              ,"£34,905.70"
COMPANIES HOUSE,CH,05/01/2021,Security clearances           ,Building Services             ,HMRC Accounts Receivable                ,"£7,972.94"
COMPANIES HOUSE,CH,28/01/2021,Service charges               ,Edinburgh                     ,KNIGHT FRANK                            ,"£13,683.67"
COMPANIES HOUSE,CH,12/01/2021,Service charges               ,Northern Ireland              ,CBRE NI LIMITED                         ,"£7,840.24"
COMPANIES HOUSE,CH,05/01/2021,Software as a service         ,IT Infrastructure             ,GRANICUS                                ,£581.00
COMPANIES HOUSE,CH,21/01/2021,Software as a service         ,IT Infrastructure             ,GRANICUS                                ,£581.00
COMPANIES HOUSE,CH,20/01/2021,Software as a service         ,IT Infrastructure             ,AVOIRA LTD                              ,"£2,450.00"
COMPANIES HOUSE,CH,11/01/2021,Software as a service         ,IT Infrastructure             ,E2E ASSURE                              ,"£19,935.00"
COMPANIES HOUSE,CH,07/01/2021,Stationery & Consumables      ,Procurement                   ,A McLay & Company Ltd                   ,£900.00
COMPANIES HOUSE,CH,15/01/2021,Stationery & Consumables      ,Procurement                   ,BLAKE ENVELOPES                         ,"£1,032.00"
COMPANIES HOUSE,CH,25/01/2021,Stationery & Consumables      ,Procurement                   ,BLAKE ENVELOPES                         ,"£1,202.50"
COMPANIES HOUSE,CH,20/01/2021,Stationery & Consumables      ,Procurement                   ,BLAKE ENVELOPES                         ,"£2,272.00"
COMPANIES HOUSE,CH,25/01/2021,Subscriptions                 ,Analysis and Corporate Insight,THE OPEN DATA INSTITUTE                 ,"£1,440.00"
COMPANIES HOUSE,CH,07/01/2021,Subscriptions                 ,Training                      ,"Personal Expenses, Name Withheld",£549.88
COMPANIES HOUSE,CH,05/01/2021,Subscriptions                 ,Training                      ,Thomson Reuters                         ,"£2,699.00"
COMPANIES HOUSE,CH,12/01/2021,T & S UK General              ,Accounting                    ,HOTEL RESERVATION SERVICE LTD           ,£547.85
COMPANIES HOUSE,CH,12/01/2021,T & S UK General              ,Accounting                    ,HOTEL RESERVATION SERVICE LTD           ,£680.50
COMPANIES HOUSE,CH,12/01/2021,T & S UK General              ,Accounting                    ,HOTEL RESERVATION SERVICE LTD           ,£937.50
COMPANIES HOUSE,CH,12/01/2021,T & S UK General              ,Accounting                    ,HOTEL RESERVATION SERVICE LTD           ,"£1,021.10"
COMPANIES HOUSE,CH,12/01/2021,T & S UK General              ,Accounting                    ,HOTEL RESERVATION SERVICE LTD           ,"£1,036.10"
COMPANIES HOUSE,CH,12/01/2021,T & S UK General              ,Accounting                    ,HOTEL RESERVATION SERVICE LTD           ,"£1,623.11"
COMPANIES HOUSE,CH,12/01/2021,T & S UK General              ,Accounting                    ,HOTEL RESERVATION SERVICE LTD           ,"£1,680.17"
COMPANIES HOUSE,CH,12/01/2021,T & S UK General              ,Accounting                    ,HOTEL RESERVATION SERVICE LTD           ,"£1,930.80"
COMPANIES HOUSE,CH,12/01/2021,T & S UK General              ,Accounting                    ,HOTEL RESERVATION SERVICE LTD           ,"£1,976.37"
COMPANIES HOUSE,CH,08/01/2021,Travel,Edinburgh                     ,CITY CABS (EDINBURGH) LTD               ,"£1,814.67"
COMPANIES HOUSE,CH,15/01/2021,Telecom Rental                ,IT Infrastructure             ,British Telecom PLC                     ,"£1,034.20"
COMPANIES HOUSE,CH,14/01/2021,Rates,Building Services             ,GOVERNMENT PROPERTY AGENCY              ,"£54,046.33"
COMPANIES HOUSE,CH,25/01/2021,Rates,Building Services             ,GOVERNMENT PROPERTY AGENCY              ,"£62,420.57"
COMPANIES HOUSE,CH,25/01/2021,Rates,Building Services             ,GOVERNMENT PROPERTY AGENCY              ,"£74,904.69"
COMPANIES HOUSE,CH,14/01/2021,TFM Management fees           ,Building Services             ,GOVERNMENT PROPERTY AGENCY              ,"£10,500.73"
COMPANIES HOUSE,CH,14/01/2021,TFM Management fees           ,Edinburgh                     ,GOVERNMENT PROPERTY AGENCY              ,£636.46
COMPANIES HOUSE,CH,14/01/2021,TFM Management fees           ,London Information Centre,GOVERNMENT PROPERTY AGENCY              ,"£9,491.07"
COMPANIES HOUSE,CH,14/01/2021,TFM Management fees           ,Northern Ireland              ,GOVERNMENT PROPERTY AGENCY              ,£632.10
COMPANIES HOUSE,CH,21/01/2021,TFM refurbishment             ,Covid 19 Activity             ,WILLMOTT DIXON INTERIORS LTD            ,"£31,028.06"
COMPANIES HOUSE,CH,14/01/2021,Training CDD                  ,Training                      ,CSL-KPMG LLP                            ,"£1,251.00"
COMPANIES HOUSE,CH,27/01/2021,Training CDD                  ,Training                      ,MIND GYM LIMITED                        ,"£1,700.00"
COMPANIES HOUSE,CH,25/01/2021,Training CDD                  ,Training                      ,MIND GYM LIMITED                        ,"£5,100.00"
COMPANIES HOUSE,CH,14/01/2021,Training Digital              ,Training                      ,TAC SASU                                ,£675.74
COMPANIES HOUSE,CH,19/01/2021,Training Digital              ,Training                      ,Elasticsearch Ltd                       ,"£1,100.00"
COMPANIES HOUSE,CH,05/01/2021,Training Digital              ,Training                      ,BeLiminal LLP                           ,"£1,250.00"
COMPANIES HOUSE,CH,19/01/2021,Training Digital              ,Training                      ,Agilify Ltd                             ,"£1,590.00"
COMPANIES HOUSE,CH,15/01/2021,Training External             ,Training                      ,BITESIZE COMPUTER TRAINING LTD          ,£500.00
COMPANIES HOUSE,CH,19/01/2021,Training External             ,Training                      ,CARREG COACHING LTD                     ,"£1,650.00"
COMPANIES HOUSE,CH,07/01/2021,Training External             ,Training                      ,CSL-KPMG LLP                            ,"£2,000.00"
COMPANIES HOUSE,CH,28/01/2021,Training External             ,Training                      ,CSL-KPMG LLP                            ,"£2,084.00"
COMPANIES HOUSE,CH,25/01/2021,Training External             ,Training                      ,CSL-KPMG LLP                            ,"£2,500.00"
COMPANIES HOUSE,CH,25/01/2021,Training External             ,Training                      ,CSL-KPMG LLP                            ,"£2,500.00"
COMPANIES HOUSE,CH,19/01/2021,Training External             ,Training                      ,CSL-KPMG LLP                            ,"£2,526.00"
COMPANIES HOUSE,CH,28/01/2021,Training External             ,Training                      ,CSL-KPMG LLP                            ,"£2,526.00"
COMPANIES HOUSE,CH,08/01/2021,Training External             ,Training                      ,CSL-KPMG LLP                            ,"£3,000.00"
COMPANIES HOUSE,CH,07/01/2021,Training External             ,Training                      ,Cabinet Office                          ,"£10,830.00"
COMPANIES HOUSE,CH,19/01/2021,Training Other Directorates   ,Training                      ,WORTH CONSULTING LTD                    ,"£1,995.00"
COMPANIES HOUSE,CH,19/01/2021,Training Other Directorates   ,Training                      ,WATSON MARTIN LIMITED                   ,"£2,257.00"
COMPANIES HOUSE,CH,05/01/2021,Translation                   ,CDD Cardiff                   ,FCDO Services  Translation &Interpreting,"£3,009.20"
COMPANIES HOUSE,CH,28/01/2021,Translation                   ,CDD Cardiff                   ,FCDO Services  Translation &Interpreting,"£4,252.69"
COMPANIES HOUSE,CH,20/01/2021,Water                         ,Building Services             ,Dwr Cymru Welsh Water                   ,"£1,455.84"
COMPANIES HOUSE,CH,08/01/2021,Wood Pellets                  ,Building Services             ,AMP CLEAN ENERGY                        ,"£3,427.78"
COMPANIES HOUSE,CH,26/01/2021,Rates,Edinburgh                     ,The City of Edinburgh Council           ,"£8,846.00"
COMPANIES HOUSE,CH,26/01/2021,Car parking contract          ,Edinburgh                     ,The City of Edinburgh Council           ,£560.00
